bitfinex-derivatives/quotes_BTCF0:USTF0_20241226
["timestamp","ask_amount","ask_price","bid_price","bid_amount"]
[1735187694787,0.3618,98255.0,98254.0,0.042745]
[1735187694995,0.3618,98255.0,98254.0,0.040745]
[1735187695900,0.3618,98255.0,98254.0,0.042745]
[1735187696192,0.3608,98255.0,98254.0,0.044745]
[1735187696805,0.3618,98255.0,98254.0,0.044745]
[1735187697394,0.3608,98255.0,98254.0,0.044745]
[1735187697796,0.08922021,98258.0,98257.0,0.040744]
[1735187698002,0.11907493,98263.0,98257.0,0.040744]
[1735187698707,0.11907493,98263.0,98258.0,0.01528]
[1735187698910,0.11907493,98263.0,98262.0,0.040742]
[1735187699503,0.3608,98264.0,98262.0,0.040742]
[1735187699902,0.3608,98264.0,98263.0,8e-05]
[1735187701209,0.3608,98286.0,98270.0,0.040738]
[1735187701506,0.3608,98286.0,98285.0,0.040812]
[1735187702409,0.3608,98286.0,98285.0,0.04883237]
[1735187702807,0.53938294,98295.0,98294.0,0.040728]
[1735187703207,0.53938294,98295.0,98294.0,0.040808]
[1735187703512,0.3608,98295.0,98294.0,0.040808]
[1735187704305,0.17858294,98302.0,98301.0,0.040725]
[1735187704805,0.3608,98305.0,98304.0,0.040724]
[1735187705209,0.3608,98305.0,98304.0,0.040804]
[1735187706716,0.3608,98305.0,98295.0,0.03228363]
[1735187707013,4e-05,98296.0,98295.0,0.07301163]
[1735187707309,4e-05,98296.0,98295.0,0.040728]
[1735187707499,4e-05,98296.0,98295.0,0.04879186]
[1735187707913,4e-05,98296.0,98295.0,0.04979186]
[1735187708212,0.00204,98296.0,98295.0,0.04979186]
[1735187709102,0.00204,98296.0,98295.0,0.16576363]
[1735187709303,0.00204,98296.0,98295.0,0.16476363]
[1735187709503,0.00604,98296.0,98295.0,0.16476363]
[1735187710003,0.3608,98305.0,98304.0,0.040724]
[1735187710200,0.14935844,98327.0,98326.0,0.040715]
[1735187710409,0.14403624,98348.0,98327.0,0.01528]
[1735187710714,0.07316679,98348.0,98347.0,0.040786]
[1735187710912,0.05386855,98348.0,98347.0,0.040786]
[1735187711215,0.3608,98357.0,98347.0,8e-05]
[1735187711417,0.3608,98357.0,98356.0,0.040703]
[1735187711612,0.3608,98357.0,98356.0,0.040783]
[1735187713506,0.3628,98357.0,98356.0,0.040783]
[1735187713718,0.3658,98357.0,98356.0,0.040783]
[1735187720219,0.3638,98357.0,98356.0,0.040783]
[1735187720424,0.3658,98357.0,98356.0,0.040783]
[1735187721122,0.005,98357.0,98356.0,0.040783]
[1735187721429,0.0585,98370.0,98369.0,0.040697]
[1735187721729,0.0585,98370.0,98369.0,0.040777]
[1735187722122,0.3608,98388.0,98374.0,0.040695]
[1735187722326,0.0524,98387.0,98374.0,0.040695]
[1735187722625,0.0524,98387.0,98374.0,0.040775]
[1735187723420,0.3758,98375.0,98374.0,0.042775]
[1735187723919,0.015,98375.0,98374.0,0.042775]
[1735187725729,0.011,98375.0,98374.0,0.041775]
[1735187725929,0.004,98375.0,98374.0,0.040775]
[1735187726326,0.002,98375.0,98374.0,0.040775]
[1735187726626,0.004,98375.0,98374.0,0.040775]
[1735187727123,0.005,98375.0,98374.0,0.040775]
[1735187731219,0.005,98375.0,98362.0,0.0479]
[1735187731421,0.040699,98366.0,98345.0,0.00010479]
[1735187731618,0.3608,98359.0,98357.0,0.040702]
[1735187731819,0.29,98358.0,98357.0,0.040702]
[1735187732525,4e-05,98363.0,98359.0,0.040701]
[1735187732828,4e-05,98363.0,98361.0,0.040701]
[1735187735428,4e-05,98363.0,98361.0,0.044701]
[1735187735827,4e-05,98363.0,98361.0,0.043701]
[1735187738332,4e-05,98363.0,98361.0,0.042701]
[1735187739729,4e-05,98363.0,98361.0,0.040701]
[1735187740029,4e-05,98363.0,98361.0,0.042701]
[1735187741234,0.052,98365.0,98364.0,0.040699]
[1735187741633,0.052,98365.0,98364.0,0.040779]
[1735187742927,0.052,98365.0,98364.0,0.041779]
[1735187749232,0.0407,98364.0,98356.0,0.28218772]
[1735187749539,0.040705,98350.0,98349.0,0.30263364]
[1735187749837,0.040745,98350.0,98349.0,0.21653364]
[1735187750039,0.040745,98350.0,98349.0,0.13043364]
[1735187750239,0.30004,98350.0,98343.0,0.36316037]
[1735187750538,0.36084,98344.0,98335.0,0.040711]
[1735187750944,4e-05,98336.0,98330.0,0.00052]
[1735187751239,4e-05,98336.0,98327.0,0.040715]
[1735187751240,0.00010479,98335.0,98327.0,0.040715]
[1735187751444,0.3608,98332.0,98322.0,0.040717]
[1735187751645,4e-05,98328.0,98322.0,0.040717]
[1735187751943,4e-05,98323.0,98322.0,0.040717]
[1735187752744,4e-05,98323.0,98322.0,0.042717]
[1735187754053,4e-05,98323.0,98322.0,0.040717]
[1735187754243,4e-05,98323.0,98322.0,0.043717]
[1735187754443,0.401557,98323.0,98307.0,0.040723]
[1735187754646,0.3608,98315.0,98307.0,0.040723]
[1735187754847,4e-05,98308.0,98306.0,0.040723]
[1735187755343,0.36152,98323.0,98305.0,0.0544]
[1735187755344,4e-05,98323.0,98322.0,0.040717]
[1735187755742,4e-05,98323.0,98322.0,0.040797]
[1735187757837,4e-05,98323.0,98322.0,0.042797]
[1735187758846,4e-05,98323.0,98322.0,0.05265017]
[1735187759941,4e-05,98323.0,98322.0,0.00208]
[1735187763752,4e-05,98323.0,98322.0,0.042797]
[1735187765253,0.00010479,98335.0,98334.0,0.040712]
[1735187765553,0.00010479,98335.0,98334.0,0.040792]
[1735187766344,0.00210479,98335.0,98334.0,0.040792]
[1735187767350,0.00510479,98335.0,98334.0,0.040792]
[1735187768162,0.00210479,98335.0,98334.0,0.040792]
[1735187768458,0.00210479,98335.0,98334.0,0.041792]
[1735187769261,0.00010479,98335.0,98334.0,0.041792]
[1735187770556,0.00010479,98335.0,98334.0,0.00108]
[1735187771962,0.00610479,98335.0,98334.0,0.00108]
[1735187772554,0.00810479,98335.0,98334.0,0.00108]
[1735187773260,0.00010479,98335.0,98334.0,8e-05]
[1735187773459,0.00710479,98335.0,98334.0,8e-05]
[1735187773958,0.11975274,98349.0,98334.0,0.1170687]
[1735187774155,0.11975274,98349.0,98348.0,0.040706]
[1735187774463,0.11975274,98349.0,98348.0,0.040786]
[1735187775062,0.12875274,98349.0,98348.0,0.040786]
[1735187775450,0.009,98349.0,98348.0,0.040786]
[1735187775662,0.3608,98356.0,98355.0,0.040703]
[1735187776059,0.3608,98356.0,98355.0,0.040783]
[1735187776660,0.11975274,98369.0,98365.0,0.040699]
[1735187776856,0.3608,98368.0,98365.0,0.040699]
[1735187777973,0.48055274,98368.0,98365.0,0.041699]
[1735187778466,0.12475274,98368.0,98365.0,0.041699]
[1735187779067,0.13175274,98368.0,98365.0,0.042699]
[1735187779264,0.012,98368.0,98365.0,0.042699]
[1735187780656,0.012,98368.0,98367.0,0.040698]
[1735187781964,0.005,98368.0,98365.0,0.001]
[1735187782265,0.012,98368.0,98367.0,0.041698]
[1735187782966,0.3608,98370.0,98367.0,0.040698]
[1735187783164,0.008,98368.0,98367.0,0.041698]
[1735187784166,0.007,98368.0,98367.0,0.041698]
[1735187784666,0.007,98368.0,98367.0,0.040698]
[1735187784868,0.008,98368.0,98367.0,0.042698]
[1735187786470,0.008,98368.0,98367.0,0.002]
[1735187786471,0.048698,98368.0,98367.0,0.002]
[1735187792774,0.16845074,98368.0,98367.0,0.002]
[1735187792976,0.16845074,98368.0,98327.0,0.3608]
[1735187792977,0.12775274,98368.0,98327.0,0.3608]
[1735187793284,0.3608,98351.0,98341.0,0.0552]
[1735187793472,0.040708,98343.0,98341.0,0.0552]
[1735187795279,0.042708,98343.0,98341.0,0.0552]
[1735187796276,0.044708,98343.0,98341.0,0.0552]
[1735187799367,0.3608,98377.0,98360.0,0.040701]
[1735187799582,0.25077831,98385.0,98368.0,0.040698]
[1735187799779,0.25077831,98385.0,98365.0,0.3608]
[1735187799780,0.2095673,98385.0,98373.0,0.040695]
[1735187799974,0.3608,98380.0,98375.0,0.08941598]
[1735187801671,0.3638,98380.0,98375.0,0.08941598]
[1735187802279,0.404493,98380.0,98371.0,0.18251346]
[1735187802680,4e-05,98372.0,98371.0,0.18251346]
[1735187803076,4e-05,98372.0,98369.0,0.040697]
[1735187803077,4e-05,98372.0,98369.0,0.22321046]
[1735187803283,4e-05,98372.0,98369.0,0.18251346]
[1735187803482,4e-05,98370.0,98369.0,0.18251346]
[1735187804480,4e-05,98370.0,98368.0,8e-05]
[1735187804481,4e-05,98370.0,98368.0,0.18259346]
[1735187804788,4e-05,98369.0,98368.0,0.18259346]
[1735187804978,4e-05,98369.0,98368.0,0.22329046]
[1735187805686,4e-05,98369.0,98368.0,0.040777]
[1735187806791,0.00104,98369.0,98368.0,0.040777]
[1735187807587,0.1,98400.0,98394.0,0.040687]
[1735187807888,0.1,98400.0,98370.0,0.040697]
[1735187807889,0.1,98400.0,98399.0,8e-05]
[1735187808275,0.1,98400.0,98399.0,0.040765]
[1735187810384,0.105,98400.0,98399.0,0.041765]
[1735187813483,0.1,98400.0,98399.0,0.041765]
[1735187813691,0.105,98400.0,98399.0,0.041765]
[1735187813988,0.105,98400.0,98399.0,0.040765]
[1735187814390,0.102,98400.0,98399.0,0.040765]
[1735187815686,0.3608,98416.0,98413.0,0.040679]
[1735187815879,0.3608,98416.0,98408.0,0.3608]
[1735187816077,0.3608,98425.0,98415.0,8e-05]
[1735187816293,0.3608,98425.0,98421.0,0.040675]
[1735187816590,0.3608,98425.0,98424.0,8e-05]
[1735187817483,0.3668,98425.0,98424.0,8e-05]
[1735187818088,0.3668,98425.0,98424.0,0.00108]
[1735187818386,0.006,98425.0,98424.0,0.36188]
[1735187819592,0.004,98425.0,98424.0,0.36188]
[1735187821290,0.004,98425.0,98424.0,0.00108]
[1735187827294,0.405474,98425.0,98424.0,0.00108]
[1735187827496,0.405474,98425.0,98404.0,0.3608]
[1735187827497,0.040677,98419.0,98407.0,0.040681]
[1735187827795,0.040677,98418.0,98408.0,0.040681]
[1735187827997,0.3648,98425.0,98408.0,0.13009698]
[1735187828296,0.040678,98417.0,98408.0,0.13009698]
[1735187828497,0.3648,98425.0,98404.0,0.375716]
[1735187828498,0.3608,98416.0,98404.0,0.36144]
[1735187828697,0.040686,98396.0,98395.0,0.3608]
[1735187829192,0.040691,98384.0,98383.0,0.54372702]
[1735187829390,0.040691,98384.0,98383.0,0.54316702]
[1735187829592,4e-05,98384.0,98383.0,0.54316702]
[1735187830585,0.00104,98384.0,98383.0,0.54316702]
[1735187830985,0.00104,98384.0,98383.0,0.3608]
[1735187831898,4e-05,98384.0,98383.0,0.3608]
[1735187832599,4e-05,98384.0,98383.0,0.3618]
[1735187833583,4e-05,98384.0,98383.0,0.3628]
[1735187833999,4e-05,98384.0,98383.0,0.3618]
[1735187834188,0.22588873,98429.0,98385.0,0.040691]
[1735187834403,0.22644874,98429.0,98423.0,0.3608]
[1735187834595,0.22588873,98429.0,98427.0,0.040673]
[1735187835292,0.3608,98458.0,98423.0,0.3608]
[1735187835604,0.040664,98450.0,98431.0,0.401471]
[1735187835991,0.040664,98450.0,98433.0,0.040671]
[1735187836794,0.044664,98450.0,98435.0,0.04067]
[1735187837001,0.050664,98450.0,98436.0,0.040669]
[1735187837201,0.050664,98450.0,98433.0,0.001]
[1735187837403,0.050664,98450.0,98439.0,0.040668]
[1735187837701,0.050664,98450.0,98440.0,0.040668]
[1735187838202,0.048664,98450.0,98440.0,0.040668]
[1735187838592,0.3688,98450.0,98436.0,0.001]
[1735187838899,0.3688,98450.0,98448.0,0.040664]
[1735187840202,0.3648,98450.0,98448.0,0.040664]
[1735187840392,0.3708,98450.0,98448.0,0.040664]
[1735187840798,0.3648,98450.0,98448.0,0.040664]
[1735187840992,0.3708,98450.0,98448.0,0.041664]
[1735187843104,0.401465,98449.0,98421.0,0.3608]
[1735187843402,0.040674,98425.0,98416.0,0.24315603]
[1735187843592,0.3608,98427.0,98416.0,0.28383403]
[1735187844705,0.3608,98427.0,98416.0,0.040678]
[1735187845100,4e-05,98417.0,98416.0,0.040678]
[1735187845301,4e-05,98417.0,98414.0,0.0745]
[1735187845702,4e-05,98415.0,98414.0,0.0745]
[1735187847705,4e-05,98415.0,98414.0,0.0755]
[1735187848007,4e-05,98415.0,98414.0,0.0775]
[1735187851311,4e-05,98415.0,98414.0,0.0765]
[1735187861212,4e-05,98415.0,98414.0,0.0745]
[1735187861418,4e-05,98415.0,98414.0,0.0765]
[1735187867115,4e-05,98415.0,98414.0,0.0755]
[1735187868918,4e-05,98415.0,98414.0,0.116179]
[1735187871209,0.3608,98427.0,98414.0,0.116179]
[1735187871410,0.3608,98427.0,98426.0,0.040674]
[1735187871616,0.3608,98427.0,98426.0,0.040754]
[1735187873333,0.001,98427.0,98426.0,0.040754]
[1735187873815,0.002,98427.0,98426.0,0.040754]
[1735187874625,0.001,98427.0,98426.0,0.040754]
[1735187874824,0.003,98427.0,98426.0,0.0546592]
[1735187875727,0.002,98427.0,98426.0,0.0546592]
[1735187875927,0.003,98427.0,98426.0,0.0546592]
[1735187878031,0.003,98427.0,98426.0,0.0139852]
[1735187878738,0.043673,98427.0,98426.0,0.0139852]
[1735187878921,0.043673,98427.0,98423.0,0.30457509]
[1735187878922,0.040675,98424.0,98423.0,0.30457509]
[1735187879126,0.24651598,98426.0,98411.0,0.36549011]
[1735187879434,0.401479,98412.0,98411.0,0.36549011]
[1735187880334,0.040684,98402.0,98397.0,0.0006]
[1735187880533,0.3608,98402.0,98396.0,0.18268348]
[1735187880833,4e-05,98397.0,98396.0,0.18268348]
[1735187881525,4e-05,98397.0,98392.0,0.1615]
[1735187881933,4e-05,98393.0,98392.0,0.1615]
[1735187882637,4e-05,98393.0,98392.0,0.17524773]
[1735187883422,4e-05,98393.0,98392.0,0.17924773]
[1735187883627,0.00104,98393.0,98392.0,0.18824773]
[1735187884527,0.00104,98393.0,98392.0,0.22893573]
[1735187885741,0.5912,98475.0,98392.0,0.22893573]
[1735187886040,0.28016649,98457.0,98441.0,0.7216]
[1735187886224,0.23950549,98457.0,98442.0,0.0805]
[1735187886433,0.23950549,98457.0,98444.0,0.040666]
[1735187886631,0.23950549,98457.0,98445.0,8e-05]
[1735187886933,0.040655,98471.0,98445.0,8e-05]
[1735187887144,0.040655,98471.0,98470.0,0.3608]
[1735187887331,0.040655,98471.0,98470.0,0.36088]
[1735187887932,1.540655,98471.0,98470.0,0.36088]
[1735187888430,1.540655,98471.0,98470.0,0.14742101]
[1735187889239,1.540655,98471.0,98470.0,8e-05]
[1735187889424,1.542655,98471.0,98470.0,0.00208]
[1735187889841,1.542655,98471.0,98470.0,0.00108]
[1735187890040,1.540655,98471.0,98470.0,0.00108]
[1735187890243,1.542655,98471.0,98470.0,0.00208]
[1735187902240,1.542655,98471.0,98442.0,0.5213]
[1735187902241,0.040667,98443.0,98442.0,0.5213]
[1735187902741,0.040707,98443.0,98442.0,0.5213]
[1735187905037,0.042707,98443.0,98442.0,0.5213]
[1735187906742,0.00204,98443.0,98442.0,0.5213]
[1735187906947,0.040659,98462.0,98442.0,0.5213]
[1735187907441,0.040659,98462.0,98461.0,8e-05]
[1735187908146,0.05691018,98462.0,98461.0,8e-05]
[1735187909950,0.05691018,98462.0,98461.0,0.00108]
[1735187911549,0.046659,98462.0,98461.0,0.00108]
[1735187916938,0.09606636,98462.0,98461.0,0.00108]
[1735187919957,0.046659,98462.0,98461.0,0.00108]
[1735187922756,0.15073555,98464.0,98461.0,0.00108]
[1735187922957,0.02013555,98468.0,98461.0,0.00108]
[1735187923158,0.06079155,98468.0,98467.0,0.3608]
[1735187923361,0.02013555,98468.0,98467.0,0.36088]
[1735187923660,0.040654,98474.0,98467.0,0.36088]
[1735187924051,0.040654,98474.0,98473.0,8e-05]
[1735187925063,0.18001411,98484.0,98473.0,8e-05]
[1735187925359,0.22066411,98484.0,98483.0,0.36088]
[1735187925557,0.04065,98484.0,98483.0,0.36088]
[1735187926666,0.040648,98489.0,98483.0,0.36188]
[1735187926863,0.040648,98489.0,98484.0,0.0789]
[1735187927761,0.040648,98489.0,98488.0,8e-05]
[1735187929359,0.040648,98489.0,98488.0,0.00108]
[1735187930563,0.1,98500.0,98488.0,0.00108]
[1735187930762,0.040644,98498.0,98490.0,0.08941598]
[1735187930967,0.040644,98498.0,98497.0,0.3608]
[1735187933069,0.040644,98498.0,98497.0,0.3618]
[1735187943971,0.1,98500.0,98497.0,0.3618]
[1735187945273,0.1,98500.0,98497.0,0.3608]
[1735187945473,0.1,98500.0,98498.0,0.040644]
[1735187948679,0.1,98500.0,98498.0,0.041644]
[1735187954881,0.1,98500.0,98498.0,0.001]
[1735187955081,0.140643,98500.0,98498.0,0.001]
[1735187955284,0.085,98499.0,98498.0,0.001]
[1735187955883,0.040645,98496.0,98495.0,0.18232766]
[1735187956192,0.04065,98483.0,98481.0,0.18232766]
[1735187957091,4e-05,98496.0,98480.0,0.54312766]
[1735187957092,0.12055322,98486.0,98480.0,0.54312766]
[1735187957588,0.12055322,98486.0,98485.0,8e-05]
[1735187959580,0.12055322,98489.0,98485.0,8e-05]
[1735187959877,0.12055322,98489.0,98488.0,0.3608]
[1735187960282,0.12055322,98489.0,98488.0,0.36088]
[1735187960881,0.09041589,98490.0,98488.0,0.36088]
[1735187961389,0.09041589,98490.0,98489.0,8e-05]
[1735187964092,0.12055322,98493.0,98489.0,8e-05]
[1735187964286,0.12055322,98493.0,98489.0,0.040728]
[1735187964481,0.12055322,98493.0,98492.0,8e-05]
[1735187965198,0.12055322,98494.0,98492.0,8e-05]
[1735187965498,0.12055322,98494.0,98493.0,8e-05]
[1735187968893,0.12055322,98494.0,98493.0,0.00108]
[1735187971393,0.12055322,98495.0,98493.0,0.00108]
[1735187971787,0.12055322,98495.0,98494.0,8e-05]
[1735187972782,0.12055322,98495.0,98494.0,0.00108]
[1735187974988,0.12055322,98495.0,98494.0,0.01112935]
[1735187975184,0.12055322,98495.0,98494.0,0.00108]
[1735187976590,0.09043656,98495.0,98494.0,0.00108]
[1735187979497,0.09047656,98496.0,98494.0,0.18340766]
[1735187979702,0.09047656,98496.0,98495.0,0.040645]
[1735187979888,0.09047656,98496.0,98495.0,0.040725]
[1735187980804,4e-05,98496.0,98495.0,0.040725]
[1735187980998,4e-05,98496.0,98495.0,0.041725]
[1735187986899,4e-05,98496.0,98495.0,0.22405266]
[1735187987200,4e-05,98496.0,98495.0,0.26278511]
[1735187988206,4e-05,98496.0,98495.0,0.26178511]
[1735187988709,4e-05,98496.0,98495.0,0.07945745]
[1735187991903,0.040685,98496.0,98495.0,0.03881245]
[1735187992301,0.040685,98496.0,98495.0,8e-05]
[1735187995005,0.16123822,98496.0,98495.0,8e-05]
[1735187998915,0.12059322,98496.0,98495.0,8e-05]
[1735187999120,4e-05,98496.0,98495.0,8e-05]
[1735187999410,4e-05,98496.0,98495.0,0.040725]
[1735187999710,4e-05,98496.0,98495.0,0.07954579]
[1735188000816,0.09056688,98496.0,98495.0,0.07954579]
[1735188001813,0.09056688,98496.0,98495.0,0.040725]
[1735188002117,4e-05,98496.0,98495.0,0.040725]
[1735188005918,4e-05,98496.0,98495.0,0.28428128]
[1735188007416,0.09056688,98496.0,98495.0,0.040725]
[1735188008119,0.09056688,98496.0,98495.0,0.07954579]
[1735188008622,4e-05,98496.0,98495.0,0.32310207]
[1735188010926,4e-05,98496.0,98495.0,0.07954579]
[1735188012819,0.19052688,98500.0,98495.0,0.07331936]
[1735188013123,0.1207025,98504.0,98503.0,0.040642]
[1735188013318,0.1207025,98504.0,98503.0,0.43585659]
[1735188013528,0.1207025,98509.0,98508.0,0.04064]
[1735188013726,0.1207025,98509.0,98508.0,0.07946079]
[1735188013928,0.1207025,98509.0,98508.0,0.07954079]
[1735188014231,0.1207025,98509.0,98508.0,0.04072]
[1735188014727,0.15069152,98516.0,98508.0,8e-05]
[1735188014927,0.15069152,98516.0,98515.0,0.401437]
[1735188015112,0.12066545,98522.0,98515.0,0.36088]
[1735188015318,0.12066545,98522.0,98521.0,0.3608]
[1735188015512,0.12066545,98522.0,98521.0,0.36088]
[1735188016529,0.040634,98523.0,98521.0,8e-05]
[1735188017032,0.040634,98523.0,98522.0,8e-05]
[1735188018130,0.15069152,98528.0,98522.0,8e-05]
[1735188018629,0.15069152,98529.0,98527.0,8e-05]
[1735188019010,0.15069152,98529.0,98528.0,8e-05]
[1735188019728,0.15069152,98529.0,98528.0,0.36088]
[1735188020511,0.15069152,98529.0,98528.0,0.36188]
[1735188020927,0.15069152,98529.0,98528.0,0.36088]
[1735188021121,0.15069152,98529.0,98528.0,0.36188]
[1735188021521,0.0899,98531.0,98529.0,0.040631]
[1735188021728,0.15069152,98536.0,98528.0,0.36188]
[1735188021927,0.15069152,98536.0,98531.0,0.04063]
[1735188022425,0.15069152,98536.0,98530.0,8e-05]
[1735188022921,0.15069152,98536.0,98528.0,0.3618]
[1735188022922,0.15069152,98536.0,98535.0,8e-05]
[1735188023637,0.15069152,98536.0,98535.0,0.07728]
[1735188023818,0.15069152,98536.0,98535.0,0.07722963]
[1735188024126,0.15069152,98538.0,98536.0,0.040628]
[1735188024323,0.15069152,98538.0,98537.0,0.3608]
[1735188024629,0.15069152,98538.0,98537.0,0.36088]
[1735188025729,0.040624,98546.0,98537.0,0.36088]
[1735188025929,0.040624,98546.0,98537.0,0.37094276]
[1735188026229,0.040624,98546.0,98544.0,8e-05]
[1735188027419,0.040624,98546.0,98544.0,0.00108]
[1735188030024,0.4399,98545.0,98544.0,0.00108]
[1735188030224,0.040628,98536.0,98535.0,2.963e-05]
[1735188030621,0.040668,98536.0,98535.0,2.963e-05]
[1735188031431,0.124368,98536.0,98535.0,2.963e-05]
[1735188031638,0.08374,98536.0,98514.0,0.44142]
[1735188031937,0.040671,98529.0,98520.0,0.040635]
[1735188032236,0.040671,98529.0,98520.0,0.0509325]
[1735188035135,0.040671,98529.0,98520.0,0.0102975]
[1735188035320,0.040671,98529.0,98514.0,0.44142]
[1735188037036,0.040671,98529.0,98516.0,0.01021037]
[1735188042836,0.19118438,98529.0,98516.0,0.01021037]
[1735188043731,0.19118438,98529.0,98520.0,0.040635]
[1735188043930,0.040671,98529.0,98520.0,0.040635]
[1735188044134,0.040671,98529.0,98519.0,0.05849137]
[1735188044334,0.040671,98529.0,98522.0,0.040634]
[1735188045627,0.040671,98529.0,98518.0,0.18223558]
[1735188047541,0.19146937,98529.0,98514.0,0.44142]
[1735188047743,0.19146937,98529.0,98515.0,0.01008197]
[1735188048338,0.040637,98516.0,98514.0,0.08062]
[1735188048544,0.040637,98516.0,98515.0,0.3608]
[1735188050241,0.3608,98518.0,98507.0,0.18248146]
[1735188050433,0.04064,98508.0,98507.0,0.18248146]
[1735188051437,0.04064,98508.0,98507.0,0.18348146]
[1735188051841,0.04064,98508.0,98507.0,0.001]
[1735188052235,0.04064,98508.0,98507.0,0.003]
[1735188052853,0.040643,98500.0,98498.0,0.3608]
[1735188053238,4e-05,98499.0,98498.0,0.3608]
[1735188054049,4e-05,98499.0,98498.0,0.3618]
[1735188058455,0.04064,98507.0,98498.0,0.3618]
[1735188058657,0.04064,98507.0,98506.0,0.3608]
[1735188064443,0.40144,98507.0,98502.0,0.18248146]
[1735188064649,0.040645,98496.0,98495.0,0.24298077]
[1735188065049,1.540645,98496.0,98495.0,0.24298077]
[1735188065251,0.040645,98496.0,98494.0,0.24298077]
[1735188065647,4e-05,98495.0,98494.0,0.24298077]
[1735188065950,0.040649,98486.0,98485.0,0.30372596]
[1735188066154,0.401449,98486.0,98485.0,0.30372596]
[1735188066350,0.401489,98486.0,98485.0,0.30372596]
[1735188067054,0.040651,98480.0,98479.0,0.0838]
[1735188068052,0.040691,98480.0,98479.0,0.0838]
[1735188068955,0.040691,98480.0,98479.0,0.0848]
[1735188073363,0.040691,98480.0,98479.0,0.001]
[1735188080460,4e-05,98480.0,98479.0,0.001]
[1735188081360,4e-05,98480.0,98479.0,0.01123901]
[1735188081561,4e-05,98480.0,98479.0,0.001]
[1735188086168,0.13766602,98496.0,98479.0,0.001]
[1735188086364,0.13766602,98496.0,98492.0,0.3608]
[1735188086763,0.040644,98497.0,98492.0,0.3608]
[1735188088261,0.041644,98497.0,98492.0,0.3608]
[1735188089375,0.041644,98497.0,98493.0,0.0874]
[1735188089564,0.001,98497.0,98493.0,0.0874]
[1735188089765,0.040645,98496.0,98493.0,0.0874]
[1735188089967,0.040645,98495.0,98493.0,0.0874]
[1735188091371,0.041645,98495.0,98493.0,0.0874]
[1735188097774,0.040648,98488.0,98479.0,0.3608]
[1735188098178,4e-05,98481.0,98479.0,0.3608]
[1735188098370,4e-05,98481.0,98471.0,0.0815]
[1735188098567,0.040655,98472.0,98471.0,0.0815]
[1735188098774,0.040695,98472.0,98471.0,0.0815]
[1735188101083,0.040695,98472.0,98471.0,0.0865]
[1735188101382,0.040695,98472.0,98471.0,0.0835]
[1735188101684,0.040695,98472.0,98471.0,0.0865]
[1735188117193,4e-05,98472.0,98471.0,0.0865]
[1735188121205,4e-05,98472.0,98471.0,0.005]
[1735188121700,0.00831517,98472.0,98471.0,0.005]
[1735188121895,4e-05,98472.0,98471.0,0.005]
[1735188122096,4e-05,98472.0,98456.0,0.0837]
[1735188122300,0.04066,98460.0,98456.0,0.0837]
[1735188122499,0.0407,98460.0,98456.0,0.0837]
[1735188123008,0.0407,98460.0,98457.0,0.0079988]
[1735188123299,0.0407,98460.0,98459.0,0.0085172]
[1735188123702,0.0407,98460.0,98459.0,0.005]
[1735188123891,0.0407,98460.0,98457.0,0.0079988]
[1735188124094,0.0407,98460.0,98459.0,0.013]
[1735188124393,0.04066,98460.0,98459.0,0.013]
[1735188124594,0.15035914,98470.0,98459.0,0.013]
[1735188124799,0.15035914,98470.0,98467.0,0.3608]
[1735188124994,0.15035914,98470.0,98469.0,8e-05]
[1735188125196,0.19101514,98470.0,98469.0,8e-05]
[1735188125798,0.040656,98470.0,98469.0,8e-05]
[1735188126500,0.040656,98470.0,98469.0,0.00208]
[1735188127703,0.040656,98470.0,98469.0,0.00608]
[1735188150438,0.19135967,98470.0,98469.0,0.00608]
[1735188151540,0.040656,98470.0,98469.0,0.00608]
[1735188154431,0.09005805,98470.0,98469.0,0.00608]
[1735188162439,0.040656,98470.0,98469.0,0.00608]
[1735188163866,0.040656,98470.0,98469.0,0.046736]
[1735188166650,0.040656,98470.0,98469.0,0.00608]
[1735188167850,0.16119654,98470.0,98469.0,0.00608]
[1735188169446,0.040656,98470.0,98469.0,0.00608]
[1735188172360,0.09005518,98470.0,98469.0,0.00608]
[1735188173954,0.040662,98454.0,98453.0,0.24352335]
[1735188174948,0.12048298,98456.0,98448.0,0.24352335]
[1735188175153,0.040664,98449.0,98448.0,0.24352335]
[1735188175353,0.040704,98449.0,98448.0,0.24352335]
[1735188176460,0.040704,98449.0,98448.0,0.007]
[1735188177260,0.040704,98449.0,98448.0,0.016]
[1735188177761,0.16118698,98449.0,98448.0,0.016]
[1735188178365,0.16218698,98449.0,98448.0,0.013]
[1735188178553,0.16218698,98449.0,98448.0,0.01]
[1735188180464,0.041704,98449.0,98448.0,0.01]
[1735188183165,0.13187347,98449.0,98448.0,0.01]
[1735188185064,0.041704,98449.0,98448.0,0.01]
[1735188204277,0.19230773,98449.0,98448.0,0.01]
[1735188207184,0.041704,98449.0,98448.0,0.01]
[1735188209680,0.09111778,98449.0,98448.0,0.01]
[1735188216085,0.19256253,98449.0,98448.0,0.01]
[1735188217682,0.15189853,98449.0,98448.0,0.050665]
[1735188218778,0.15189853,98449.0,98448.0,0.23305569]
[1735188219188,0.15189853,98449.0,98448.0,0.24254614]
[1735188219990,0.00104,98449.0,98448.0,0.24254614]
[1735188221287,0.00104,98449.0,98448.0,0.06015545]
[1735188222589,0.00104,98449.0,98448.0,0.24254614]
[1735188222790,0.00104,98449.0,98448.0,0.19239069]
[1735188222986,0.041704,98449.0,98448.0,0.18639069]
[1735188223185,0.040666,98444.0,98437.0,0.30372596]
[1735188223591,0.401466,98444.0,98437.0,0.30372596]
[1735188223889,0.401466,98444.0,98435.0,0.30372596]
[1735188224090,0.40147,98436.0,98435.0,0.30372596]
[1735188224291,0.4015854,98436.0,98435.0,0.30372596]